[Event "World Junior Chess Championship U20 2022"]
[White "Karsten, Jan"]
[Black "Bournel, Antoine"]
[WhiteFideId "14350653"]
[BlackFideId "26093553"]
[WhiteElo "1985"]
[BlackElo "2402"]
[Result "0-1"]
[Round "01"]
[TimeControl "5400+30"]
[Date "2022.10.12"]
[WhiteClock "0:01:59"]
[BlackClock "0:13:59"]

1. e4 {[%clk 1:30:52]}  c6 {[%clk 1:30:27]} 2. d4 {[%clk 1:31:17]}  d5 {[%clk 1:30:22]} 3. e5 {[%clk 1:31:42]}  Bf5 {[%clk 1:30:13]} 4. h4 {[%clk 1:32:08]}  h5 {[%clk 1:29:49]} 5. Bd3 {[%clk 1:32:32]}  Bxd3 {[%clk 1:29:38]} 6. Qxd3 {[%clk 1:32:56]}  Qa5+ {[%clk 1:29:29]} 7. Nd2 {[%clk 1:33:18]}  e6 {[%clk 1:29:05]} 8. Nf3 {[%clk 1:33:25]}  Ne7 {[%clk 1:28:11]} 9. O-O {[%clk 1:31:36]}  Nf5 {[%clk 1:27:13]} 10. a4 {[%clk 1:31:23]}  Be7 {[%clk 1:21:06]} 11. Nb3 {[%clk 1:30:17]}  Qa6 {[%clk 1:20:02]} 12. Qc3 {[%clk 1:29:46]}  Nxh4 {[%clk 1:15:53]} 13. Nxh4 {[%clk 1:29:48]}  Bxh4 {[%clk 1:16:18]} 14. Nc5 {[%clk 1:30:03]}  Qb6 {[%clk 1:16:01]} 15. Ra3 {[%clk 1:30:14]}  Qc7 {[%clk 1:13:51]} 16. Qh3 {[%clk 1:30:15]}  Be7 {[%clk 1:11:03]} 17. Nxe6 {[%clk 1:29:20]}  fxe6 {[%clk 1:09:19]} 18. Qxe6 {[%clk 1:29:44]}  Nd7 {[%clk 1:03:07]} 19. Qg6+ {[%clk 1:28:53]}  Kd8 {[%clk 1:03:08]} 20. Qxg7 {[%clk 1:28:59]}  Re8 {[%clk 0:59:02]} 21. Rd3 {[%clk 1:29:02]}  Nf8 {[%clk 0:56:28]} 22. Qf7 {[%clk 1:01:29]}  Qd7 {[%clk 0:49:36]} 23. f4 {[%clk 0:55:14]}  c5 {[%clk 0:39:57]} 24. c3 {[%clk 0:36:48]}  cxd4 {[%clk 0:38:54]} 25. cxd4 {[%clk 0:32:42]}  Rc8 {[%clk 0:33:17]} 26. f5 {[%clk 0:29:26]}  Rc2 {[%clk 0:32:20]} 27. Bf4 {[%clk 0:14:59]}  Qc6 {[%clk 0:31:35]} 28. Rc3 {[%clk 0:13:34]}  Rxc3 {[%clk 0:31:12]} 29. bxc3 {[%clk 0:13:59]}  Nd7 {[%clk 0:29:01]} 30. f6 {[%clk 0:12:43]}  Ba3 {[%clk 0:27:19]} 31. Bd2 {[%clk 0:09:58]}  h4 {[%clk 0:21:26]} 32. Qh5 {[%clk 0:08:23]}  Nf8 {[%clk 0:18:17]} 33. Qxh4 {[%clk 0:06:58]}  Re6 {[%clk 0:15:56]} 34. Qh8 {[%clk 0:05:41]}  Kc7 {[%clk 0:08:10]} 35. Qg7+ {[%clk 0:04:34]}  Nd7 {[%clk 0:08:13]} 36. Qf7 {[%clk 0:04:26]}  Kb6 {[%clk 0:07:15]} 37. Ra1 {[%clk 0:04:03]}  Nxe5 {[%clk 0:05:34]} 38. dxe5 {[%clk 0:03:30]}  Rxe5 {[%clk 0:04:57]} 39. Kh1 {[%clk 0:02:25]}  Re4 {[%clk 0:02:49]} 40. Rb1+ {[%clk 0:00:48]}  Ka6 {[%clk 0:03:05]} 41. Qh7 {[%clk 0:28:52]}  b6 {[%clk 0:29:29]} 42. Bg5 {[%clk 0:16:42]}  Qe6 {[%clk 0:16:56]} 43. Rf1 {[%clk 0:13:23]}  Qg4 {[%clk 0:15:49]} 44. Qh6 {[%clk 0:08:17]}  Re5 {[%clk 0:14:17]} 45. Rf4 {[%clk 0:02:07]}  Qg3 {[%clk 0:14:09]} 46. Rf1 {[%clk 0:01:40]}  Rxg5 {[%clk 0:13:48]} 47. Qh3 {[%clk 0:01:34]}  Qxh3+ {[%clk 0:13:50]} 48. gxh3 {[%clk 0:01:59]}  Rg3 {[%clk 0:13:59]} 0-1


[Site "http://www.chessbomb.com"]

[Event "World Junior Chess Championship U20 2022"]
[White "Peyrer, Konstantin"]
[Black "Momin, Fayzan"]
[WhiteFideId "1640879"]
[BlackFideId "7805225"]
[WhiteElo "2402"]
[BlackElo "1974"]
[Result "1-0"]
[Round "01"]
[TimeControl "5400+30"]
[Date "2022.10.12"]
[WhiteClock "0:52:50"]
[BlackClock "0:42:38"]

1. Nf3 {[%clk 1:30:51]}  d5 {[%clk 1:30:39]} 2. g3 {[%clk 1:31:10]}  Nd7 {[%clk 1:30:56]} 3. Bg2 {[%clk 1:31:31]}  e5 {[%clk 1:31:07]} 4. d3 {[%clk 1:31:47]}  Ngf6 {[%clk 1:31:21]} 5. O-O {[%clk 1:32:15]}  Bd6 {[%clk 1:31:30]} 6. Nc3 {[%clk 1:29:02]}  O-O {[%clk 1:30:24]} 7. e4 {[%clk 1:29:05]}  c6 {[%clk 1:29:42]} 8. Nh4 {[%clk 1:29:08]}  Nb6 {[%clk 1:28:10]} 9. Nf5 {[%clk 1:26:27]}  Bxf5 {[%clk 1:27:15]} 10. exf5 {[%clk 1:26:52]}  Re8 {[%clk 1:27:25]} 11. g4 {[%clk 1:25:51]}  d4 {[%clk 1:24:11]} 12. Ne4 {[%clk 1:25:43]}  Nxe4 {[%clk 1:24:38]} 13. Bxe4 {[%clk 1:22:59]}  Be7 {[%clk 1:24:40]} 14. Qf3 {[%clk 1:16:45]}  Bg5 {[%clk 1:25:04]} 15. Kh1 {[%clk 1:17:02]}  Na4 {[%clk 1:16:44]} 16. Qg3 {[%clk 1:15:29]}  Rb8 {[%clk 1:10:51]} 17. f4 {[%clk 1:13:19]}  exf4 {[%clk 1:10:10]} 18. Bxf4 {[%clk 1:13:07]}  Bxf4 {[%clk 1:10:33]} 19. Rxf4 {[%clk 1:13:34]}  f6 {[%clk 1:05:36]} 20. g5 {[%clk 1:11:19]}  fxg5 {[%clk 0:59:30]} 21. Rg4 {[%clk 1:11:25]}  Qf6 {[%clk 0:55:51]} 22. Rg1 {[%clk 1:10:49]}  Rbd8 {[%clk 0:50:45]} 23. h4 {[%clk 1:07:46]}  Qh6 {[%clk 0:44:54]} 24. Kg2 {[%clk 0:57:07]}  gxh4 {[%clk 0:45:15]} 25. Rxh4 {[%clk 0:57:31]}  Qf6 {[%clk 0:45:34]} 26. Rgh1 {[%clk 0:53:42]}  h6 {[%clk 0:45:31]} 27. Rxh6 {[%clk 0:52:27]}  Qe5 {[%clk 0:42:38]} 28. Qxe5 {[%clk 0:52:50]} 1-0


[Site "http://www.chessbomb.com"]

[Event "World Junior Chess Championship U20 2022"]
[White "Vairo, Rocco Enrico"]
[Black "Di Benedetto, Edoardo"]
[WhiteFideId "2839437"]
[BlackFideId "875740"]
[WhiteElo "1960"]
[BlackElo "2396"]
[Result "0-1"]
[Round "01"]
[TimeControl "5400+30"]
[Date "2022.10.12"]
[WhiteClock "0:01:00"]
[BlackClock "0:02:45"]

1. e4 {[%clk 1:30:50]}  e6 {[%clk 1:30:55]} 2. d4 {[%clk 1:31:05]}  d5 {[%clk 1:31:20]} 3. Nc3 {[%clk 1:31:26]}  Nf6 {[%clk 1:31:43]} 4. e5 {[%clk 1:31:49]}  Nfd7 {[%clk 1:32:07]} 5. Nce2 {[%clk 1:32:08]}  c5 {[%clk 1:32:23]} 6. c3 {[%clk 1:32:27]}  Nc6 {[%clk 1:32:12]} 7. Nf3 {[%clk 1:32:39]}  Qa5 {[%clk 1:29:45]} 8. a3 {[%clk 1:26:29]}  cxd4 {[%clk 1:29:41]} 9. b4 {[%clk 1:26:44]}  Qc7 {[%clk 1:30:07]} 10. cxd4 {[%clk 1:26:41]}  b5 {[%clk 1:30:30]} 11. Nf4 {[%clk 1:22:44]}  Qb6 {[%clk 1:29:09]} 12. Be2 {[%clk 1:02:02]}  a5 {[%clk 1:16:45]} 13. bxa5 {[%clk 1:01:34]}  Qxa5+ {[%clk 1:11:35]} 14. Bd2 {[%clk 1:00:45]}  Qb6 {[%clk 1:11:39]} 15. Be3 {[%clk 0:56:58]}  Rxa3 {[%clk 1:04:56]} 16. O-O {[%clk 0:54:19]}  Rxa1 {[%clk 1:01:23]} 17. Qxa1 {[%clk 0:54:38]}  Be7 {[%clk 1:00:01]} 18. Rc1 {[%clk 0:47:54]}  Bb7 {[%clk 0:51:11]} 19. Qb1 {[%clk 0:44:12]}  b4 {[%clk 0:50:19]} 20. Bd3 {[%clk 0:40:26]}  g6 {[%clk 0:39:34]} 21. h4 {[%clk 0:30:28]}  Ndb8 {[%clk 0:32:37]} 22. g3 {[%clk 0:17:59]}  Kd7 {[%clk 0:29:49]} 23. Qb2 {[%clk 0:10:32]}  Rc8 {[%clk 0:27:13]} 24. Ng5 {[%clk 0:06:41]}  Bxg5 {[%clk 0:24:53]} 25. hxg5 {[%clk 0:07:08]}  Na5 {[%clk 0:21:43]} 26. Rb1 {[%clk 0:06:24]}  Nbc6 {[%clk 0:21:59]} 27. Kg2 {[%clk 0:06:22]}  b3 {[%clk 0:10:28]} 28. Rh1 {[%clk 0:05:39]}  Rh8 {[%clk 0:07:26]} 29. Rd1 {[%clk 0:03:47]}  Kc8 {[%clk 0:03:46]} 30. Rc1 {[%clk 0:01:21]}  Kb8 {[%clk 0:03:21]} 31. Kg1 {[%clk 0:01:18]}  Nb4 {[%clk 0:02:35]} 32. Rc3 {[%clk 0:00:34]}  Rc8 {[%clk 0:02:42]} 33. Bd2 {[%clk 0:00:55]}  Nxd3 {[%clk 0:01:36]} 34. Rxd3 {[%clk 0:00:38]}  Nc4 {[%clk 0:01:56]} 35. Rxb3 {[%clk 0:00:37]}  Nxb2 {[%clk 0:02:17]} 36. Rxb6 {[%clk 0:01:00]}  Nc4 {[%clk 0:02:45]} 0-1


[Site "http://www.chessbomb.com"]

[Event "World Junior Chess Championship U20 2022"]
[White "Lumachi, Gabriele"]
[Black "De Ieso, Lorenzo"]
[WhiteFideId "2817247"]
[BlackFideId "2894101"]
[WhiteElo "2387"]
[BlackElo "1938"]
[Result "1-0"]
[Round "01"]
[TimeControl "5400+30"]
[Date "2022.10.12"]
[WhiteClock "0:21:44"]
[BlackClock "0:01:15"]

1. d4 {[%clk 1:30:57]}  Nf6 {[%clk 1:30:51]} 2. c4 {[%clk 1:31:22]}  e6 {[%clk 1:31:15]} 3. Nf3 {[%clk 1:31:39]}  d5 {[%clk 1:31:38]} 4. Nc3 {[%clk 1:31:57]}  Bb4 {[%clk 1:31:59]} 5. Bg5 {[%clk 1:32:12]}  h6 {[%clk 1:32:22]} 6. Bxf6 {[%clk 1:32:36]}  Qxf6 {[%clk 1:32:45]} 7. Qb3 {[%clk 1:33:03]}  c5 {[%clk 1:32:44]} 8. cxd5 {[%clk 1:33:14]}  exd5 {[%clk 1:32:01]} 9. e3 {[%clk 1:33:39]}  O-O {[%clk 1:28:13]} 10. dxc5 {[%clk 1:34:03]}  Bxc3+ {[%clk 1:26:29]} 11. Qxc3 {[%clk 1:34:26]}  Qxc3+ {[%clk 1:26:47]} 12. bxc3 {[%clk 1:34:52]}  Nd7 {[%clk 1:26:42]} 13. Rd1 {[%clk 1:35:15]}  Nf6 {[%clk 1:26:52]} 14. c4 {[%clk 1:06:00]}  dxc4 {[%clk 1:25:18]} 15. Bxc4 {[%clk 1:05:21]}  Bg4 {[%clk 1:24:25]} 16. Rc1 {[%clk 1:00:14]}  Bxf3 {[%clk 1:18:48]} 17. gxf3 {[%clk 1:00:39]}  Rac8 {[%clk 1:17:00]} 18. Ke2 {[%clk 0:55:35]}  Rc7 {[%clk 1:16:34]} 19. Bd3 {[%clk 0:44:47]}  Nd7 {[%clk 1:15:01]} 20. c6 {[%clk 0:45:10]}  bxc6 {[%clk 1:10:22]} 21. Rc2 {[%clk 0:43:15]}  Rb8 {[%clk 0:53:11]} 22. Rhc1 {[%clk 0:40:22]}  c5 {[%clk 0:51:15]} 23. Bf5 {[%clk 0:40:33]}  g6 {[%clk 0:50:59]} 24. Bxd7 {[%clk 0:40:35]}  Rxd7 {[%clk 0:51:23]} 25. Rxc5 {[%clk 0:41:00]}  Rb2+ {[%clk 0:51:42]} 26. R1c2 {[%clk 0:40:49]}  Rxc2+ {[%clk 0:51:17]} 27. Rxc2 {[%clk 0:41:15]}  Rd5 {[%clk 0:51:00]} 28. Rc4 {[%clk 0:40:43]}  Kg7 {[%clk 0:44:11]} 29. Ra4 {[%clk 0:36:49]}  Kf6 {[%clk 0:43:04]} 30. Ra6+ {[%clk 0:35:27]}  Kg7 {[%clk 0:42:49]} 31. Kf1 {[%clk 0:27:41]}  Rd7 {[%clk 0:41:38]} 32. f4 {[%clk 0:28:05]}  h5 {[%clk 0:38:32]} 33. Kg2 {[%clk 0:28:13]}  Re7 {[%clk 0:34:05]} 34. Kg3 {[%clk 0:28:28]}  Kh7 {[%clk 0:26:35]} 35. a4 {[%clk 0:28:11]}  f5 {[%clk 0:14:14]} 36. a5 {[%clk 0:28:00]}  Kh6 {[%clk 0:13:10]} 37. Rc6 {[%clk 0:26:46]}  Rd7 {[%clk 0:11:05]} 38. a6 {[%clk 0:27:02]}  Re7 {[%clk 0:10:36]} 39. Kf3 {[%clk 0:26:38]}  Rd7 {[%clk 0:09:08]} 40. h4 {[%clk 0:24:06]}  Re7 {[%clk 0:07:00]} 41. Ke2 {[%clk 0:24:20]}  Rd7 {[%clk 0:06:57]} 42. e4 {[%clk 0:23:35]}  Rd4 {[%clk 0:04:00]} 43. f3 {[%clk 0:22:18]}  fxe4 {[%clk 0:02:35]} 44. Ke3 {[%clk 0:22:36]}  Rd3+ {[%clk 0:03:00]} 45. Kxe4 {[%clk 0:22:58]}  Ra3 {[%clk 0:03:22]} 46. f5 {[%clk 0:21:39]}  Ra4+ {[%clk 0:03:42]} 47. Ke3 {[%clk 0:22:04]}  Rxh4 {[%clk 0:03:55]} 48. Rxg6+ {[%clk 0:19:36]}  Kh7 {[%clk 0:04:16]} 49. Rc6 {[%clk 0:19:58]}  Ra4 {[%clk 0:03:16]} 50. Rc7+ {[%clk 0:20:19]}  Kg8 {[%clk 0:03:20]} 51. Rxa7 {[%clk 0:20:41]}  Kf8 {[%clk 0:01:47]} 52. Ra8+ {[%clk 0:20:54]}  Kf7 {[%clk 0:02:09]} 53. a7 {[%clk 0:21:19]}  Kg7 {[%clk 0:01:15]} 54. f6+ {[%clk 0:21:44]} 1-0


[Site "http://www.chessbomb.com"]

[Event "World Junior Chess Championship U20 2022"]
[White "Liloni, Francesco Mattia"]
[Black "Chukavin, Kirill"]
[WhiteFideId "2872264"]
[BlackFideId "4503023"]
[WhiteElo "1876"]
[BlackElo "2384"]
[Result "0-1"]
[Round "01"]
[TimeControl "5400+30"]
[Date "2022.10.12"]
[WhiteClock "0:42:56"]
[BlackClock "0:06:50"]

1. e4 {[%clk 1:30:57]}  c5 {[%clk 1:30:31]} 2. Nc3 {[%clk 1:31:20]}  Nc6 {[%clk 1:30:40]} 3. Bb5 {[%clk 1:31:42]}  Nd4 {[%clk 1:30:01]} 4. Nf3 {[%clk 1:32:06]}  e6 {[%clk 1:29:17]} 5. O-O {[%clk 1:32:29]}  Qc7 {[%clk 1:25:25]} 6. Nxd4 {[%clk 1:32:51]}  cxd4 {[%clk 1:25:48]} 7. Ne2 {[%clk 1:33:17]}  Nf6 {[%clk 1:24:08]} 8. d3 {[%clk 1:31:49]}  a6 {[%clk 1:18:23]} 9. Ba4 {[%clk 1:31:27]}  Bc5 {[%clk 1:18:01]} 10. c3 {[%clk 1:21:19]}  dxc3 {[%clk 1:15:45]} 11. d4 {[%clk 1:18:21]}  cxb2 {[%clk 1:02:37]} 12. Bxb2 {[%clk 1:18:45]}  Be7 {[%clk 1:02:38]} 13. Rc1 {[%clk 1:19:02]}  Qb6 {[%clk 0:54:08]} 14. Rb1 {[%clk 1:17:57]}  Nxe4 {[%clk 0:38:19]} 15. d5 {[%clk 1:15:20]}  Qd6 {[%clk 0:38:15]} 16. Nd4 {[%clk 1:13:20]}  O-O {[%clk 0:34:00]} 17. Bc2 {[%clk 1:10:18]}  Nf6 {[%clk 0:26:32]} 18. Re1 {[%clk 1:08:45]}  b5 {[%clk 0:23:04]} 19. Qd3 {[%clk 1:05:14]}  Bb7 {[%clk 0:20:49]} 20. Nc6 {[%clk 1:04:17]}  dxc6 {[%clk 0:18:02]} 21. Bxf6 {[%clk 1:03:59]}  g6 {[%clk 0:18:23]} 22. Be5 {[%clk 1:00:17]}  Qxd5 {[%clk 0:17:59]} 23. Qh3 {[%clk 1:00:35]}  Rfd8 {[%clk 0:15:32]} 24. Bb3 {[%clk 0:55:32]}  Qd3 {[%clk 0:14:48]} 25. Qh6 {[%clk 0:55:32]}  Bf8 {[%clk 0:14:30]} 26. Qh4 {[%clk 0:54:36]}  g5 {[%clk 0:08:24]} 27. Qxg5+ {[%clk 0:54:38]}  Qg6 {[%clk 0:08:51]} 28. Qh4 {[%clk 0:47:01]}  c5 {[%clk 0:09:13]} 29. g3 {[%clk 0:46:15]}  h6 {[%clk 0:08:06]} 30. Rb2 {[%clk 0:45:24]}  Bg7 {[%clk 0:07:26]} 31. Bc2 {[%clk 0:45:04]}  Qg5 {[%clk 0:07:10]} 32. Qxg5 {[%clk 0:45:10]}  hxg5 {[%clk 0:07:36]} 33. Bxg7 {[%clk 0:45:31]}  Kxg7 {[%clk 0:08:00]} 34. Re5 {[%clk 0:45:43]}  Rd5 {[%clk 0:08:12]} 35. Re2 {[%clk 0:43:55]}  Rad8 {[%clk 0:08:27]} 36. f4 {[%clk 0:43:18]}  c4 {[%clk 0:06:40]} 37. fxg5 {[%clk 0:42:56]}  Rd2 {[%clk 0:06:50]} 0-1


[Site "http://www.chessbomb.com"]

[Event "World Junior Chess Championship U20 2022"]
[White "Isik, Alparslan"]
[Black "Dimakis, Stavros"]
[WhiteFideId "34506896"]
[BlackFideId "25879472"]
[WhiteElo "2377"]
[BlackElo "1832"]
[Result "1-0"]
[Round "01"]
[TimeControl "5400+30"]
[Date "2022.10.12"]
[WhiteClock "0:17:38"]
[BlackClock "0:01:16"]

1. Nf3 {[%clk 1:30:56]}  d5 {[%clk 1:30:54]} 2. g3 {[%clk 1:31:18]}  Nc6 {[%clk 1:31:01]} 3. d4 {[%clk 1:31:26]}  Bf5 {[%clk 1:31:11]} 4. Bg2 {[%clk 1:31:01]}  Nb4 {[%clk 1:29:36]} 5. Na3 {[%clk 1:29:54]}  e6 {[%clk 1:29:05]} 6. O-O {[%clk 1:27:46]}  Nf6 {[%clk 1:24:28]} 7. c3 {[%clk 1:20:53]}  Nc6 {[%clk 1:24:42]} 8. Nc2 {[%clk 1:19:35]}  Be4 {[%clk 1:14:04]} 9. b3 {[%clk 1:16:36]}  Be7 {[%clk 1:10:25]} 10. Bb2 {[%clk 1:15:28]}  O-O {[%clk 0:58:28]} 11. c4 {[%clk 1:15:41]}  a5 {[%clk 0:57:17]} 12. Ne3 {[%clk 1:12:54]}  a4 {[%clk 0:45:57]} 13. bxa4 {[%clk 1:11:59]}  dxc4 {[%clk 0:37:02]} 14. Nxc4 {[%clk 1:11:46]}  Nb4 {[%clk 0:36:27]} 15. a3 {[%clk 1:07:40]}  Nbd5 {[%clk 0:33:14]} 16. a5 {[%clk 1:05:49]}  b5 {[%clk 0:23:04]} 17. axb6 {[%clk 1:03:01]}  Nxb6 {[%clk 0:22:44]} 18. Nxb6 {[%clk 0:55:42]}  cxb6 {[%clk 0:23:09]} 19. Ne5 {[%clk 0:53:27]}  Bxg2 {[%clk 0:18:55]} 20. Kxg2 {[%clk 0:53:51]}  Qd5+ {[%clk 0:17:14]} 21. f3 {[%clk 0:50:53]}  Rfc8 {[%clk 0:12:33]} 22. a4 {[%clk 0:44:40]}  b5 {[%clk 0:09:14]} 23. e4 {[%clk 0:43:33]}  Qb7 {[%clk 0:09:33]} 24. Qb3 {[%clk 0:40:23]}  b4 {[%clk 0:02:44]} 25. Rf2 {[%clk 0:37:15]}  h6 {[%clk 0:01:57]} 26. Rd2 {[%clk 0:36:29]}  Ra5 {[%clk 0:01:08]} 27. Rad1 {[%clk 0:32:13]}  Qa6 {[%clk 0:01:15]} 28. d5 {[%clk 0:32:15]}  exd5 {[%clk 0:01:07]} 29. exd5 {[%clk 0:32:39]}  Nxd5 {[%clk 0:00:44]} 30. Rxd5 {[%clk 0:32:45]}  Qe2+ {[%clk 0:01:02]} 31. Kh3 {[%clk 0:25:06]}  Rxd5 {[%clk 0:01:02]} 32. Qxd5 {[%clk 0:24:14]}  Rf8 {[%clk 0:00:39]} 33. Ng6 {[%clk 0:17:50]}  Qxb2 {[%clk 0:01:02]} 34. Nxe7+ {[%clk 0:18:16]}  Kh8 {[%clk 0:01:22]} 35. Qd4 {[%clk 0:16:38]}  Qxd4 {[%clk 0:00:38]} 36. Rxd4 {[%clk 0:17:05]}  b3 {[%clk 0:01:00]} 37. Rb4 {[%clk 0:17:31]}  Ra8 {[%clk 0:01:16]} 38. Nd5 {[%clk 0:17:38]} 1-0


[Site "http://www.chessbomb.com"]

[Event "World Junior Chess Championship U20 2022"]
[White "Porcu, Riccardo"]
[Black "Gatineau, Yovann"]
[WhiteFideId "28536690"]
[BlackFideId "26028999"]
[WhiteElo "1759"]
[BlackElo "2375"]
[Result "0-1"]
[Round "01"]
[TimeControl "5400+30"]
[Date "2022.10.12"]
[WhiteClock "0:01:27"]
[BlackClock "0:01:00"]

1. d4 {[%clk 1:30:56]}  Nf6 {[%clk 1:29:59]} 2. c4 {[%clk 1:31:20]}  e6 {[%clk 1:29:14]} 3. Nc3 {[%clk 1:31:42]}  Bb4 {[%clk 1:29:27]} 4. Qc2 {[%clk 1:31:58]}  b6 {[%clk 1:29:02]} 5. e3 {[%clk 1:20:03]}  Bb7 {[%clk 1:27:59]} 6. Ne2 {[%clk 1:19:52]}  c5 {[%clk 1:24:38]} 7. a3 {[%clk 1:12:33]}  Ba5 {[%clk 1:23:59]} 8. Ng3 {[%clk 1:11:53]}  O-O {[%clk 1:17:35]} 9. f3 {[%clk 1:01:27]}  d5 {[%clk 1:12:33]} 10. cxd5 {[%clk 0:58:16]}  exd5 {[%clk 1:05:09]} 11. Bd3 {[%clk 0:54:30]}  Nc6 {[%clk 1:02:44]} 12. O-O {[%clk 0:49:20]}  Rc8 {[%clk 0:54:58]} 13. Bf5 {[%clk 0:37:52]}  Rc7 {[%clk 0:53:03]} 14. Nb5 {[%clk 0:37:37]}  Re7 {[%clk 0:52:42]} 15. dxc5 {[%clk 0:35:13]}  bxc5 {[%clk 0:51:40]} 16. Qxc5 {[%clk 0:34:11]}  Bb6 {[%clk 0:51:07]} 17. Qc2 {[%clk 0:30:14]}  g6 {[%clk 0:37:23]} 18. Bh3 {[%clk 0:28:09]}  Bxe3+ {[%clk 0:29:37]} 19. Bxe3 {[%clk 0:28:25]}  Rxe3 {[%clk 0:30:01]} 20. Qc5 {[%clk 0:24:45]}  Qb6 {[%clk 0:20:06]} 21. Qxb6 {[%clk 0:23:31]}  axb6 {[%clk 0:20:34]} 22. Rac1 {[%clk 0:20:19]}  Rb3 {[%clk 0:14:41]} 23. Rxc6 {[%clk 0:20:28]}  Bxc6 {[%clk 0:15:05]} 24. Nd4 {[%clk 0:20:45]}  Ba4 {[%clk 0:15:20]} 25. Nxb3 {[%clk 0:21:08]}  Bxb3 {[%clk 0:15:49]} 26. Re1 {[%clk 0:19:29]}  d4 {[%clk 0:11:09]} 27. Ne4 {[%clk 0:13:52]}  Nd5 {[%clk 0:05:11]} 28. Nd2 {[%clk 0:12:28]}  Bc2 {[%clk 0:04:52]} 29. g3 {[%clk 0:11:33]}  Rd8 {[%clk 0:04:03]} 30. Kf2 {[%clk 0:10:42]}  Ne3 {[%clk 0:03:55]} 31. Bf1 {[%clk 0:04:33]}  Nd1+ {[%clk 0:03:44]} 32. Kg2 {[%clk 0:04:42]}  Nxb2 {[%clk 0:03:54]} 33. Re5 {[%clk 0:03:14]}  Ba4 {[%clk 0:02:57]} 34. Re1 {[%clk 0:02:13]}  Nd1 {[%clk 0:02:31]} 35. Bd3 {[%clk 0:02:04]}  Kg7 {[%clk 0:01:16]} 36. Re7 {[%clk 0:00:47]}  Nb2 {[%clk 0:01:01]} 37. Bb1 {[%clk 0:00:59]}  Rd7 {[%clk 0:00:36]} 38. Rxd7 {[%clk 0:00:35]}  Bxd7 {[%clk 0:01:05]} 39. Kf2 {[%clk 0:01:03]}  Kf6 {[%clk 0:00:57]} 40. Nb3 {[%clk 0:00:59]}  Ke5 {[%clk 0:00:44]} 41. Ke2 {[%clk 0:01:08]}  Bb5+ {[%clk 0:00:50]} 42. Kd2 {[%clk 0:01:27]}  Nc4+ {[%clk 0:01:00]} 0-1


[Site "http://www.chessbomb.com"]

[Event "World Junior Chess Championship U20 2022"]
[White "Milosevic, Milos"]
[Black "van der Merwe, Alexander"]
[WhiteFideId "964875"]
[BlackFideId "14323842"]
[WhiteElo "2379"]
[BlackElo "1746"]
[Result "1-0"]
[Round "01"]
[TimeControl "5400+30"]
[Date "2022.10.12"]
[WhiteClock "0:25:24"]
[BlackClock "0:00:31"]

1. d4 {[%clk 1:30:54]}  Nf6 {[%clk 1:30:45]} 2. Nc3 {[%clk 1:31:16]}  d5 {[%clk 1:30:32]} 3. Bf4 {[%clk 1:31:27]}  g6 {[%clk 1:30:30]} 4. e3 {[%clk 1:31:29]}  Bg7 {[%clk 1:30:27]} 5. h4 {[%clk 1:31:28]}  h5 {[%clk 1:26:38]} 6. Nf3 {[%clk 1:31:41]}  O-O {[%clk 1:24:16]} 7. Be2 {[%clk 1:29:59]}  c5 {[%clk 1:22:22]} 8. Ne5 {[%clk 1:29:17]}  Nc6 {[%clk 1:20:19]} 9. Nxc6 {[%clk 1:26:36]}  bxc6 {[%clk 1:20:13]} 10. O-O {[%clk 1:26:54]}  cxd4 {[%clk 1:19:20]} 11. exd4 {[%clk 1:27:19]}  Nd7 {[%clk 1:11:31]} 12. Na4 {[%clk 1:21:36]}  e5 {[%clk 1:03:54]} 13. Bg5 {[%clk 1:22:01]}  Qa5 {[%clk 0:53:26]} 14. c3 {[%clk 1:20:19]}  Ba6 {[%clk 0:51:38]} 15. Bxa6 {[%clk 1:20:08]}  Qxa6 {[%clk 0:52:06]} 16. b3 {[%clk 1:17:50]}  Rfe8 {[%clk 0:50:52]} 17. dxe5 {[%clk 1:12:58]}  Rxe5 {[%clk 0:40:19]} 18. Rc1 {[%clk 1:08:43]}  c5 {[%clk 0:35:17]} 19. Be3 {[%clk 0:58:12]}  Qc6 {[%clk 0:34:19]} 20. Qd2 {[%clk 0:54:38]}  Bf8 {[%clk 0:29:14]} 21. Bg5 {[%clk 0:44:54]}  Rae8 {[%clk 0:26:53]} 22. Rfe1 {[%clk 0:43:28]}  Nf6 {[%clk 0:16:58]} 23. Rxe5 {[%clk 0:39:57]}  Rxe5 {[%clk 0:17:27]} 24. Qf4 {[%clk 0:39:56]}  Rf5 {[%clk 0:12:56]} 25. Qb8 {[%clk 0:39:44]}  Qd6 {[%clk 0:08:18]} 26. Qxd6 {[%clk 0:39:56]}  Bxd6 {[%clk 0:08:47]} 27. Rd1 {[%clk 0:38:54]}  Kg7 {[%clk 0:06:45]} 28. f3 {[%clk 0:38:08]}  Nd7 {[%clk 0:04:24]} 29. Kf2 {[%clk 0:28:08]}  Nf8 {[%clk 0:04:16]} 30. Be3 {[%clk 0:27:10]}  Ne6 {[%clk 0:04:17]} 31. a3 {[%clk 0:26:27]}  Be7 {[%clk 0:03:48]} 32. g3 {[%clk 0:24:29]}  d4 {[%clk 0:04:01]} 33. Bd2 {[%clk 0:21:07]}  Rd5 {[%clk 0:03:23]} 34. c4 {[%clk 0:20:24]}  Rd6 {[%clk 0:02:55]} 35. Ke2 {[%clk 0:17:31]}  f5 {[%clk 0:01:57]} 36. Kd3 {[%clk 0:16:32]}  f4 {[%clk 0:01:37]} 37. gxf4 {[%clk 0:16:46]}  Bxh4 {[%clk 0:01:12]} 38. Rh1 {[%clk 0:15:59]}  Be7 {[%clk 0:00:59]} 39. f5 {[%clk 0:16:15]}  gxf5 {[%clk 0:00:46]} 40. Rxh5 {[%clk 0:16:39]}  Kg6 {[%clk 0:01:09]} 41. Rh8 {[%clk 0:14:36]}  Rd7 {[%clk 0:01:17]} 42. b4 {[%clk 0:14:02]}  Kg7 {[%clk 0:00:55]} 43. Rc8 {[%clk 0:13:54]}  cxb4 {[%clk 0:00:53]} 44. axb4 {[%clk 0:14:14]}  Rb7 {[%clk 0:00:59]} 45. c5 {[%clk 0:14:01]}  Kf6 {[%clk 0:00:39]} 46. Kc4 {[%clk 0:13:37]}  Bd8 {[%clk 0:15:04]} 47. Rc6 {[%clk 0:39:07]}  Kf7 {[%clk 0:09:32]} 48. Rd6 {[%clk 0:31:58]}  Be7 {[%clk 0:08:16]} 49. Rd5 {[%clk 0:31:42]}  Kf6 {[%clk 0:07:56]} 50. c6 {[%clk 0:28:23]}  Rc7 {[%clk 0:07:48]} 51. b5 {[%clk 0:28:46]}  a6 {[%clk 0:07:32]} 52. Ba5 {[%clk 0:28:24]}  Rc8 {[%clk 0:06:10]} 53. bxa6 {[%clk 0:26:59]}  Rxc6+ {[%clk 0:05:09]} 54. Kb5 {[%clk 0:27:25]}  Rc8 {[%clk 0:03:53]} 55. a7 {[%clk 0:27:37]}  d3 {[%clk 0:00:58]} 56. Rxd3 {[%clk 0:25:49]}  Nc5 {[%clk 0:00:52]} 57. Nxc5 {[%clk 0:24:51]}  Bxc5 {[%clk 0:00:52]} 58. Bb6 {[%clk 0:25:00]}  Be7 {[%clk 0:00:31]} 59. Ka6 {[%clk 0:25:24]} 1-0


[Site "http://www.chessbomb.com"]